bitfinex/quotes_ETHUSD_20220119
["timestamp","ask_amount","ask_price","bid_price","bid_amount"]
[1642571776349,0.8055,3105.6,3105.4,2.73615948]
[1642571776549,0.8055,3105.6,3105.5,0.00795792]
[1642571776754,0.8055,3105.6,3105.5,2.7441174]
[1642571777049,1.0,3105.7,3105.5,2.7441174]
[1642571777250,5.8359,3105.6,3105.5,0.30795792]
[1642571777452,5.8359,3105.6,3105.5,2.29255282]
[1642571777650,5.8359,3105.6,3105.5,1.99255282]
[1642571777851,5.8359,3105.6,3105.5,6.54255282]
[1642571778151,5.8359,3105.6,3105.5,0.3]
[1642571778551,5.8359,3105.6,3105.4,0.8054233]
[1642571778997,5.8359,3105.6,3105.4,1.1054233]
[1642571780000,5.8359,3105.6,3105.4,0.3]
[1642571780400,5.8359,3105.6,3105.1,1.9108796]
[1642571780801,5.8359,3105.6,3105.2,0.0096632]
[1642571781203,6.34285,3105.6,3105.2,0.0096632]
[1642571781402,6.34285,3105.6,3105.2,0.8150921]
[1642571781702,6.34285,3105.6,3105.3,0.00909477]
[1642571784587,6.34285,3105.6,3105.1,0.01023162]
[1642571784988,6.34285,3105.6,3105.1,0.81570282]
[1642571785386,6.34285,3105.6,3105.1,1.11570282]
[1642571786188,6.05025,3105.6,3105.1,1.11570282]
[1642571786997,6.05025,3105.6,3105.1,0.81570282]
[1642571787204,6.05025,3105.6,3105.1,0.01023162]
[1642571787398,0.80551,3105.4,3105.1,0.01023162]
[1642571789201,0.80551,3105.4,3105.1,0.81571312]
[1642571789500,0.80551,3105.4,3105.1,1.11571312]
[1642571791354,0.53683049,3105.4,3105.1,1.11571312]
[1642571792359,0.53683049,3105.4,3105.2,2.73619853]
[1642571792756,0.53683049,3105.4,3105.3,0.00909477]
[1642571792955,0.53683049,3105.4,3105.3,2.7452933]
[1642571795203,0.48683049,3105.4,3105.3,2.7452933]
[1642571796203,0.48683049,3105.4,3105.3,2.7703579]
[1642571796406,0.19473049,3105.4,3105.3,2.7703579]
[1642571797007,6.85577,3105.6,3105.3,3.0703579]
[1642571797306,6.85577,3105.6,3105.4,2.74472488]
[1642571797556,6.85577,3105.6,3105.5,2.73619853]
[1642571797753,6.85577,3105.6,3105.5,2.74415645]
[1642571797952,6.85577,3105.6,3105.5,3.04415645]
[1642571799355,6.85577,3105.6,3105.5,2.74415645]
[1642571801298,6.85577,3105.6,3105.5,2.76919264]
[1642571801495,6.56257,3105.6,3105.5,2.76919264]
[1642571803295,7.40363099,3105.6,3105.5,2.76919264]
[1642571806352,7.40363099,3105.6,3105.5,2.74415645]
[1642571806550,7.10803099,3105.6,3105.5,2.74415645]
[1642571811507,8.10803099,3105.6,3105.5,2.74415645]
[1642571811707,7.80703099,3105.6,3105.5,2.74415645]
[1642571812548,8.61255099,3105.6,3105.5,2.74415645]
[1642571813348,7.61255099,3105.6,3105.5,2.74415645]
[1642571816899,7.32145099,3105.6,3105.5,2.74415645]
[1642571821768,7.02915099,3105.6,3105.5,2.74415645]
[1642571826909,6.73685099,3105.6,3105.5,2.74415645]
[1642571827547,7.54237099,3105.6,3105.5,2.74415645]
[1642571827752,8.54237099,3105.6,3105.5,2.73619853]
[1642571827953,8.92837099,3105.6,3105.5,2.73619853]
[1642571831608,8.92837099,3105.6,3104.9,2.73619853]
[1642571831811,1.61127,3105.4,3104.9,2.73619853]
[1642571832008,1.70227,3105.4,3105.0,0.01080004]
[1642571832307,1.70227,3105.4,3105.1,2.73619853]
[1642571832708,1.70227,3105.4,3105.2,0.0096632]
[1642571832910,1.70227,3105.4,3105.3,2.73619853]
[1642571833109,6.79261,3105.4,3105.3,2.73619853]
[1642571833309,6.79261,3105.4,3105.3,2.7452933]
[1642571833508,7.79261,3105.4,3105.3,2.7452933]
[1642571837155,7.49361,3105.4,3105.3,2.7452933]
[1642571837955,7.79361,3105.4,3105.3,2.7452933]
[1642571838815,7.49361,3105.4,3105.3,2.7452933]
[1642571839007,6.49361,3105.4,3105.3,2.7452933]
[1642571842409,6.19081,3105.4,3105.3,2.7452933]
[1642571842650,6.19081,3105.4,3105.3,3.0452933]
[1642571842852,5.80481,3105.4,3105.3,3.0452933]
[1642571845661,5.09034,3105.4,3105.3,5.0452933]
[1642571845858,5.09034,3105.4,3105.3,3.0452933]
[1642571846058,5.09034,3105.4,3105.3,8.9550933]
[1642571846902,5.09034,3105.4,3105.3,3.4050933]
[1642571847507,4.79504,3105.4,3105.3,6.5952933]
[1642571847705,4.79504,3105.4,3105.3,3.0452933]
[1642571848106,4.79504,3105.4,3105.3,2.7452933]
[1642571849406,4.79504,3105.4,3105.3,3.0452933]
[1642571852656,4.49734,3105.4,3105.3,6.7952933]
[1642571853255,4.49734,3105.4,3105.3,3.0452933]
[1642571857748,4.19914,3105.4,3105.3,3.0452933]
[1642571862802,3.90904,3105.4,3105.3,3.0452933]
[1642571863202,3.90904,3105.4,3105.3,3.03619853]
[1642571867957,3.61174,3105.4,3105.3,3.03619853]
[1642571871810,3.61174,3105.4,3105.3,2.73619853]
[1642571872112,0.80558,3105.3,3104.8,1.1596]
[1642571872313,3.61174,3105.4,3104.8,1.1596]
[1642571872556,3.61174,3105.4,3104.9,0.01136847]
[1642571872951,3.32224,3105.4,3104.9,0.01136847]
[1642571873552,4.12773,3105.4,3104.9,0.01136847]
[1642571873754,0.80548,3105.3,3104.9,0.01136847]
[1642571876501,0.80548,3105.3,3104.7,1.6360492]
[1642571876502,1.61103,3105.3,3104.8,0.01193689]
[1642571877200,0.80553,3105.2,3104.8,0.01193689]
[1642571878102,0.50793,3105.2,3104.8,0.01193689]
[1642571878300,0.50793,3105.2,3104.8,1.64798609]
[1642571878499,0.50793,3105.2,3104.8,0.01193689]
[1642571879702,0.50793,3105.2,3104.7,0.01250531]
[1642571879902,1.31349,3105.2,3104.7,0.01250531]
[1642571880163,0.80555,3105.1,3104.7,0.01250531]
[1642571880761,0.80555,3105.1,3104.7,1.64855451]
[1642571880962,0.80555,3105.1,3104.7,0.01250531]
[1642571881163,0.80555,3105.1,3104.8,0.01193689]
[1642571881363,0.80555,3105.1,3104.7,1.64855451]
[1642571881564,0.80555,3105.1,3104.8,0.01193689]
[1642571881863,0.80555,3105.1,3104.8,0.31193689]
[1642571882162,0.80555,3105.1,3104.8,0.01193689]
[1642571882967,0.80555,3105.1,3104.8,1.64798609]
[1642571883162,0.50905,3105.1,3104.8,1.94798609]
[1642571883363,0.50905,3105.1,3104.8,0.31193689]
[1642571883562,0.50905,3105.1,3104.8,0.01193689]
[1642571885210,0.50905,3105.1,3104.8,1.64798609]
[1642571885407,0.50905,3105.1,3104.8,0.01193689]
[1642571886309,0.50905,3105.1,3104.8,1.64798609]
[1642571886510,0.50905,3105.1,3104.8,1.94798609]
[1642571887112,0.50905,3105.1,3104.9,2.73646146]
[1642571887556,0.50905,3105.1,3105.0,0.01080004]
[1642571887758,0.50905,3105.1,3105.0,3.0472615]
[1642571888358,0.21205,3105.1,3105.0,3.0472615]
[1642571890964,0.21205,3105.1,3105.0,2.7472615]
[1642571891809,0.21205,3105.1,3105.0,3.0472615]
[1642571893413,0.72541,3105.2,3105.0,3.0472615]
[1642571893607,0.72541,3105.2,3105.1,2.73646146]
[1642571893807,0.72541,3105.2,3105.1,2.74669308]
[1642571894707,1.53094,3105.2,3105.1,2.74669308]
[1642571896959,1.48094,3105.2,3105.1,2.74669308]
[1642571898811,1.17114,3105.2,3105.1,2.74669308]
[1642571900411,0.80553,3105.2,3105.1,2.74669308]
[1642571904062,0.50423,3105.2,3105.1,2.74669308]
[1642571906336,0.52544055,3105.2,3105.1,2.74669308]
[1642571909130,0.22424055,3105.2,3105.1,2.74669308]
[1642571911362,0.22424055,3105.2,3105.1,2.77081515]
[1642571914216,0.73784055,3105.3,3105.1,2.77081515]
[1642571914413,0.73784055,3105.3,3105.2,2.73646146]
[1642571914614,0.73784055,3105.3,3105.2,2.74612466]
[1642571914813,7.3500335,3105.4,3105.2,2.74612466]
[1642571915013,7.3500335,3105.4,3105.3,2.73646146]
[1642571915219,7.3500335,3105.4,3105.3,2.74555623]
[1642571915418,8.3500335,3105.4,3105.3,2.74555623]
[1642571919465,8.0504335,3105.4,3105.3,2.74555623]
[1642571921715,8.3504335,3105.4,3105.3,2.74555623]
[1642571922516,7.54488,3105.4,3105.3,2.74555623]
[1642571922715,10.06830308,3105.4,3105.3,2.74555623]
[1642571923718,9.76830308,3105.4,3105.3,2.74555623]
[1642571924519,9.47150308,3105.4,3105.3,2.74555623]
[1642571929513,9.17980308,3105.4,3105.3,2.74555623]
[1642571934697,8.88270308,3105.4,3105.3,2.74555623]
[1642571939728,8.59060308,3105.4,3105.3,2.74555623]
[1642571940174,8.59060308,3105.4,3105.3,11.59555623]
[1642571940175,5.68876577,3105.4,3105.3,11.59555623]
[1642571940387,0.84112422,3105.7,3105.3,12.71081645]
[1642571940576,3.7931,3106.8,3105.7,0.13603894]
[1642571940775,0.80518,3106.7,3105.9,0.10828185]
[1642571940975,0.80518,3106.7,3106.0,2.73646146]
[1642571941272,3.7931,3106.8,3106.0,2.73646146]
[1642571941273,3.7931,3106.8,3106.1,0.00454738]
[1642571941473,3.7931,3106.8,3106.2,2.73646146]
[1642571941874,0.80518,3106.7,3106.3,0.00341054]
[1642571942077,3.7931,3106.8,3106.3,3.815072]
[1642571942276,3.7931,3106.8,3106.4,2.73646146]
[1642571942477,3.7931,3106.8,3106.4,2.73930357]
[1642571942781,3.7931,3106.8,3106.5,4.52581344]
[1642571942985,1.61259111,3106.9,3106.5,1.78935198]
[1642571943181,1.61259111,3106.9,3106.6,2.73727268]
[1642571943380,0.00113685,3107.1,3106.7,2.36802616]
[1642571943579,0.00113685,3107.1,3106.8,2.73556741]
[1642571943821,0.00397897,3107.6,3106.9,2.33426443]
[1642571944019,0.00397897,3107.6,3107.0,2.73556741]
[1642571944242,3.665,3108.0,3107.2,1.08595351]
[1642571944243,0.00341054,3107.5,3107.2,1.08595351]
[1642571944420,0.00341054,3107.5,3107.3,1.98430493]
[1642571944622,0.00284212,3107.4,3107.3,1.98430493]
[1642571944823,1.31996529,3107.8,3107.4,6.85]
[1642571945022,1.31996529,3107.8,3107.5,2.12169024]
[1642571945224,0.00170527,3107.7,3107.5,2.12169024]
[1642571945424,0.00170527,3107.7,3107.5,2.42169024]
[1642571945631,1.31996529,3107.8,3107.6,1.95074224]
[1642571946023,0.00170527,3107.7,3107.6,1.95074224]
[1642571946423,0.00511581,3108.3,3107.6,1.95074224]
[1642571946825,0.00454739,3108.2,3107.6,1.95074224]
[1642571947124,0.00397897,3108.1,3107.3,2.33169014]
[1642571947325,0.00397897,3108.1,3107.4,1.97790055]
[1642571947570,0.00341054,3108.0,3107.4,2.27790055]
[1642571947972,0.00284212,3107.9,3107.4,2.27790055]
[1642571948371,0.00227369,3107.8,3107.4,2.27790055]
[1642571948673,0.80987581,3108.3,3107.4,2.27790055]
[1642571949074,0.00454739,3108.2,3107.4,2.27790055]
[1642571949474,0.00397897,3108.1,3107.4,2.27790055]
[1642571949973,0.51597054,3108.3,3107.5,4.5]
[1642571950177,0.51597054,3108.3,3107.6,1.90459304]
[1642571950379,0.00113685,3108.2,3107.6,2.20686673]
[1642571950579,0.00113685,3108.2,3107.7,0.00170527]
[1642571950580,0.80481,3108.1,3107.7,0.00170527]
[1642571951417,0.80481,3108.1,3107.7,0.03456555]
[1642571951818,0.80481,3108.1,3107.8,0.00113685]
[1642571952019,0.80481,3108.1,3107.8,0.69373685]
[1642571952220,0.80595685,3108.2,3107.9,1.81826985]
[1642571952422,0.00113685,3108.2,3107.9,1.81826985]
[1642571952921,0.00113685,3108.2,3107.8,0.99373685]
[1642571953522,0.00113685,3108.2,3107.8,2.82244204]
[1642571953721,0.00113685,3108.2,3107.8,0.99373685]
[1642571954122,0.00113685,3108.2,3107.8,2.81571023]
[1642571954422,0.00113685,3108.2,3107.8,0.99373685]
[1642571955172,2.9528132,3108.5,3107.9,3.25]
[1642571955375,0.03082695,3108.4,3107.9,0.00170527]
[1642571955572,0.0319638,3108.4,3108.0,0.00113685]
[1642571955772,0.00113685,3108.4,3107.9,0.00170527]
[1642571955976,0.02271571,3108.4,3107.9,0.00170527]
[1642571956175,0.02271571,3108.4,3108.0,0.02765705]
[1642571956972,0.02271571,3108.4,3108.0,0.77225705]
[1642571957173,0.02271571,3108.4,3108.0,1.07225705]
[1642571957973,0.02271571,3108.4,3108.0,0.77225705]
[1642571958173,0.02271571,3108.4,3108.0,0.02765705]
[1642571958373,0.80478,3108.3,3108.0,0.02765705]
[1642571958822,0.80481,3108.2,3108.0,0.02765705]
[1642571959424,0.80478,3108.3,3108.0,0.02765705]
[1642571959831,6.85,3108.2,3106.9,1.94034188]
[1642571960038,0.01289391,3107.8,3106.8,1.125]
[1642571960234,0.386,3107.8,3107.0,0.00511581]
[1642571960633,0.386,3107.8,3106.9,0.16106]
[1642571960835,4.69635348,3108.1,3107.1,1.32096223]
[1642571961035,0.80486,3108.0,3107.1,0.8263]
[1642571961240,0.80486,3108.0,3107.2,0.30397897]
[1642571961632,3.85583685,3108.1,3107.3,0.16447054]
[1642571962132,3.85583685,3108.1,3107.4,1.32638528]
[1642571962335,3.85583685,3108.1,3107.4,1.62638528]
[1642571962571,3.85583685,3108.1,3107.5,0.0022737]
[1642571965377,3.55693685,3108.1,3107.5,0.0022737]
[1642571966179,3.57973908,3108.1,3107.5,0.0022737]
[1642571970473,3.28623908,3108.1,3107.5,0.0022737]
[1642571971077,3.28623908,3108.1,3107.5,0.3022737]
[1642571971276,3.30904131,3108.1,3107.5,0.3]
[1642571971475,3.30904131,3108.1,3107.6,0.00170527]
[1642571972877,3.30904131,3108.1,3107.5,0.0022737]
[1642571974224,3.30904131,3108.1,3107.4,0.00284212]
[1642571975625,3.01044131,3108.1,3107.4,0.00284212]
[1642571976028,0.80484,3108.0,3107.4,0.00284212]
[1642571976833,2.83305278,3108.0,3107.4,0.00284212]
[1642571977027,0.80499,3107.8,3107.1,0.00454739]
[1642571977228,1.61009,3107.6,3107.1,0.00454739]
[1642571977671,0.80504,3107.7,3107.1,0.00454739]
[1642571977870,0.80504,3107.7,3106.7,0.00682108]
[1642571978071,0.80504,3107.7,3106.8,2.73505121]
[1642571978471,0.80504,3107.7,3106.9,0.00568424]
[1642571978671,0.80496,3107.6,3106.9,0.00568424]
[1642571979271,0.80496,3107.6,3107.0,2.73500831]
[1642571979577,0.80496,3107.6,3107.1,0.00454739]
[1642571980776,0.50556,3107.6,3107.1,0.00454739]
[1642571981177,0.8049,3107.8,3107.3,0.02688923]
[1642571981619,0.8049,3107.8,3107.4,0.00284212]
[1642571982423,1.60986,3107.8,3107.4,0.00284212]
[1642571982625,2.41484,3107.8,3107.4,2.73778077]
[1642571983026,2.41484,3107.8,3107.5,0.0022737]
[1642571983627,2.41484,3107.8,3107.4,3.03775981]
[1642571983826,2.41484,3107.8,3107.5,2.73719139]
[1642571984225,2.41484,3107.8,3107.6,0.00170527]
[1642571984629,2.41484,3107.8,3107.4,3.03775073]
[1642571984831,2.41484,3107.8,3107.5,2.73718231]
[1642571985071,2.41484,3107.8,3107.5,3.03718231]
[1642571985275,2.41484,3107.8,3107.6,2.73661388]
[1642571985674,2.41484,3107.8,3107.7,0.00113685]
[1642571985874,2.12104,3107.8,3107.7,0.00113685]
[1642571987276,2.12104,3107.8,3107.7,2.73600273]
[1642571987481,2.12104,3107.8,3107.7,0.30113685]
[1642571987878,2.12104,3107.8,3107.7,3.03604866]
[1642571989923,0.8049,3107.8,3107.7,3.73184866]
[1642571990131,3.81533131,3108.1,3107.7,3.73184866]
[1642571990132,3.00930446,3108.1,3107.7,3.73184866]
[1642571990528,3.00930446,3108.1,3107.8,2.73491181]
[1642571990826,1.1363,3108.3,3107.8,2.73491181]
[1642571991127,0.00170527,3108.2,3107.9,3.2]
[1642571991326,0.00170527,3108.2,3108.0,2.73491181]
[1642571991527,1.33933858,3108.5,3107.7,0.30113685]
[1642571991528,0.00113685,3108.1,3107.7,0.30113685]
[1642571991727,0.00113685,3108.1,3107.8,2.73465415]
[1642571991927,0.80477,3108.3,3107.8,2.73465415]
[1642571995993,0.51327,3108.3,3107.8,2.73465415]
[1642571996195,0.51327,3108.3,3108.0,0.02690811]
[1642572001076,0.21357,3108.3,3108.0,0.02690811]
[1642572001276,0.21357,3108.3,3107.8,0.027148]
[1642572001477,0.21357,3108.3,3107.9,2.73457132]
[1642572001678,0.21357,3108.3,3107.9,3.03457132]
[1642572001876,0.21357,3108.3,3107.9,0.3]
[1642572002075,0.01841035,3108.1,3107.8,0.027148]
[1642572002276,0.21357,3108.3,3107.9,2.73460195]
[1642572002476,0.21357,3108.3,3107.9,3.03460195]
[1642572002677,0.21357,3108.3,3107.9,0.3]
[1642572003079,0.21357,3108.3,3107.8,0.027148]
[1642572003286,0.21357,3108.3,3107.9,2.73449]
[1642572003481,0.21357,3108.3,3107.8,0.027148]
[1642572005227,0.82334035,3108.0,3107.8,0.027148]
[1642572005430,0.464,3107.9,3107.8,0.027148]
[1642572006028,2.5803522,3107.9,3107.8,0.027148]
[1642572006226,2.2865522,3107.9,3107.8,0.027148]
[1642572006427,0.80503,3107.8,3107.6,0.03368665]
[1642572006627,0.464,3107.7,3107.6,0.03368665]
[1642572007128,0.464,3107.7,3107.6,0.03539192]
[1642572008178,0.48241035,3107.7,3107.6,0.03539192]
[1642572009180,0.48241035,3107.7,3107.6,0.54712871]
[1642572009680,0.48241035,3107.7,3107.6,1.0588655]
[1642572011364,0.18991035,3107.7,3107.6,1.02517885]
[1642572013847,0.48991035,3107.7,3107.6,1.02517885]
[1642572014751,0.18991035,3107.7,3107.6,1.02517885]
[1642572014953,2.66787645,3107.7,3107.6,1.02517885]
[1642572015189,2.66787645,3107.7,3107.4,0.033786]
[1642572015190,6.85,3107.6,3107.4,0.033786]
[1642572015391,0.80524,3107.0,3106.1,7.45]
[1642572015594,2.10327868,3106.9,3106.2,2.7352289]
[1642572015789,0.80524,3107.0,3106.2,2.74318683]
[1642572015990,0.80524,3107.0,3106.3,2.7352289]
[1642572016195,1.80524,3107.0,3106.3,2.7352289]
[1642572016390,1.50724,3107.0,3106.4,0.00682108]
[1642572016591,2.00158954,3106.9,3106.5,2.7352289]
[1642572016794,0.80524,3106.7,3106.5,2.7352289]
[1642572016992,1.26924,3106.7,3106.5,2.7352289]
[1642572017191,1.26924,3106.7,3106.1,7.75]
[1642572017192,0.01841035,3106.6,3106.1,7.75]
[1642572017395,0.464,3106.7,3106.1,7.75]
[1642572017592,1.464,3106.7,3106.2,0.00795793]
[1642572017792,0.80528,3106.5,3106.2,0.00795793]
[1642572018292,1.61054,3106.5,3106.2,0.00795793]
[1642572018701,0.01841035,3106.4,3106.2,0.00795793]
[1642572018939,0.80526,3106.5,3106.2,0.00795793]
[1642572019738,0.80527,3106.3,3106.2,0.00795793]
[1642572020141,0.82368035,3106.3,3106.2,0.00795793]
[1642572021343,0.85780911,3106.3,3106.2,0.00795793]
[1642572021539,0.56190911,3106.3,3106.2,0.00795793]
[1642572023586,0.01841035,3106.3,3106.2,0.00795793]
[1642572023989,0.01841035,3106.3,3106.2,2.95795793]
[1642572025993,0.01841035,3106.3,3106.2,0.00795793]
[1642572026193,0.01841035,3106.3,3106.2,0.03067619]
[1642572026430,0.01841035,3106.3,3106.2,0.02271826]
[1642572026636,0.53284035,3106.4,3106.2,0.02271826]
[1642572027032,0.53284035,3106.4,3106.3,5.40738951]
[1642572027235,4.84764,3107.0,3106.3,5.40738951]
[1642572027236,6.0796851,3107.2,3106.3,7.50999054]
[1642572027434,5.2746351,3107.2,3106.3,7.52207774]
[1642572027633,5.2746351,3107.2,3106.4,1.00682108]
[1642572028031,5.2746351,3107.2,3106.5,0.00625266]
[1642572028432,5.2746351,3107.2,3106.5,2.00625266]
[1642572028632,5.2746351,3107.2,3106.5,3.11129896]
[1642572028633,6.0796651,3107.2,3106.5,3.11129896]
[1642572028832,6.0796651,3107.2,3106.6,0.00568424]
[1642572029731,6.0796651,3107.2,3106.6,0.30568424]
[1642572029932,6.0796651,3107.2,3106.7,2.01658433]
[1642572030184,1.6124351,3107.2,3106.7,2.32170014]
[1642572030385,1.6124351,3107.2,3106.8,0.00454739]
[1642572030782,3.7708,3107.5,3106.8,0.00454739]
[1642572030983,3.7708,3107.5,3106.7,0.30511581]
[1642572031185,3.7708,3107.5,3106.9,0.02263539]
[1642572031583,0.51248,3107.5,3107.0,0.00341054]
[1642572032282,0.51248,3107.5,3107.0,3.03810524]
[1642572032484,0.51248,3107.5,3107.1,4.60167924]
[1642572032684,0.51248,3107.5,3107.1,1.86982666]
[1642572032985,0.51248,3107.5,3107.2,0.3022737]
[1642572033383,0.51248,3107.5,3107.3,0.00170527]
[1642572034129,0.51248,3107.5,3107.1,1.82675509]
[1642572034329,0.51248,3107.5,3107.1,1.82959721]
[1642572034537,0.51248,3107.5,3107.2,0.0022737]
[1642572034935,0.51248,3107.5,3107.0,0.00341054]
[1642572036435,0.51248,3107.5,3107.2,0.02260226]
[1642572036637,1.31751,3107.5,3107.2,0.02260226]
[1642572036839,1.01601,3107.5,3107.3,0.00170527]
[1642572037040,0.51248,3107.5,3107.3,0.00170527]
[1642572039085,0.97648,3107.5,3107.3,0.00170527]
[1642572039685,1.78151,3107.5,3107.3,0.00170527]
[1642572041726,1.78151,3107.5,3106.9,2.73499629]
[1642572042028,0.5115,3107.4,3107.0,0.00341054]
[1642572042630,1.5115,3107.4,3107.0,0.00341054]
[1642572042832,1.5115,3107.4,3106.9,0.00397897]
[1642572043235,2.31657,3107.4,3106.9,0.00397897]
[1642572043430,2.0744,3107.3,3106.9,0.00397897]
[1642572043633,3.3744,3107.3,3105.8,0.01023162]
[1642572043832,1.2497,3107.2,3105.9,2.73526082]
[1642572044032,0.80519,3106.9,3105.9,2.73526082]
[1642572044231,0.80523,3106.7,3106.0,0.00909478]
[1642572044432,0.80523,3106.7,3106.1,2.73526082]
[1642572044834,0.80523,3106.7,3106.1,3.03526082]
[1642572045106,0.80523,3106.5,3106.2,2.73526082]
[1642572045291,0.80523,3106.6,3106.2,2.73526082]
[1642572045492,0.80523,3106.6,3106.3,0.00738951]
[1642572045792,0.80523,3106.6,3106.4,2.73526082]
[1642572045992,0.80523,3106.6,3106.4,3.03526082]
[1642572046293,0.80511,3106.9,3106.5,2.74151348]
[1642572046494,0.80511,3106.9,3106.6,2.73526082]
[1642572046695,0.80511,3106.9,3106.6,0.00568424]
[1642572046893,0.80511,3106.9,3106.7,0.00511581]
[1642572047094,0.50611,3106.9,3106.5,0.00625266]
[1642572047294,0.50611,3106.9,3106.4,0.00682108]
[1642572047496,0.80528,3106.8,3106.5,0.00625266]
[1642572047699,1.61065,3106.7,3106.4,0.00682108]
[1642572047894,2.41598,3106.7,3106.4,0.00682108]
[1642572048094,3.71598,3106.7,3106.4,0.00682108]
[1642572048294,3.41598,3106.7,3106.4,0.00682108]
[1642572048493,3.71598,3106.7,3106.4,0.00682108]
[1642572049529,4.52128,3106.7,3106.4,0.00682108]
[1642572049731,0.80533,3106.6,3106.4,0.00682108]
[1642572051133,0.80533,3106.6,3106.5,2.73547765]
[1642572051534,0.80533,3106.6,3106.5,0.00625266]
[1642572051735,3.89550595,3106.6,3106.5,0.00625266]
[1642572051933,3.89550595,3106.6,3106.4,0.00682108]
[1642572052135,1.51363,3106.6,3106.4,0.00682108]
[1642572055987,0.3,3106.5,3106.4,0.00682108]
[1642572056185,1.51363,3106.6,3106.4,0.00682108]
[1642572057232,1.21363,3106.6,3106.4,0.00682108]
[1642572060186,1.21363,3106.6,3105.5,1.6104577]
[1642572060187,0.80533,3106.4,3105.5,1.6104577]
[1642572060391,0.80533,3106.4,3105.6,2.73571943]
[1642572060392,0.8054,3106.2,3105.6,2.73571943]
[1642572060689,0.8054,3106.2,3105.7,2.73571943]
[1642572060891,1.8054,3106.2,3105.7,2.73571943]
[1642572061088,0.8054,3106.2,3105.8,0.00341054]
[1642572061287,1.8054,3106.2,3105.8,0.00341054]
[1642572061487,2.61088,3106.2,3105.8,0.00341054]
[1642572061687,2.61088,3106.2,3105.3,0.00625266]
[1642572061989,1.61096,3105.9,3105.4,3.03571943]
[1642572062187,0.80548,3105.9,3105.5,2.73571943]
[1642572062388,0.51218,3105.9,3105.5,2.74083524]
[1642572062587,0.51218,3105.9,3105.6,2.73571943]
[1642572062788,1.31766,3105.9,3105.6,3.03571943]
[1642572062988,1.31766,3105.9,3105.7,2.7396984]
[1642572063188,1.31766,3105.9,3105.8,2.73571943]
[1642572063492,2.1231,3105.9,3105.8,3.03912997]
[1642572064431,3.1231,3105.9,3105.8,2.73912997]
[1642572064635,3.1231,3105.9,3104.6,3.2372]
[1642572064636,1.61103,3105.6,3104.6,3.2372]
[1642572064833,1.61111,3105.6,3104.6,3.2372]
[1642572065033,0.3,3105.5,3104.7,2.74251038]
[1642572065236,0.3,3105.5,3104.8,2.73625772]
[1642572065536,0.3,3105.6,3104.9,0.00511582]
[1642572065736,0.80562,3105.3,3105.0,2.73625772]
[1642572066138,0.80562,3105.3,3105.1,0.00397897]
[1642572066335,1.80562,3105.3,3105.2,2.73625772]
[1642572066636,1.80562,3105.3,3105.2,2.73966827]
[1642572066837,1.80562,3105.3,3105.2,0.00341055]
[1642572067240,1.80562,3105.3,3104.8,0.00568424]
[1642572067438,2.31826,3105.3,3104.9,2.73625772]
[1642572067687,2.31826,3105.3,3104.9,3.03625772]
[1642572067688,0.80563,3105.2,3104.9,3.03625772]
[1642572067891,0.80563,3105.2,3105.0,2.74080511]
[1642572067892,0.80568,3105.1,3105.0,2.74080511]
[1642572068691,1.80568,3105.1,3105.0,2.74080511]
[1642572068891,1.80568,3105.1,3103.9,2.12548074]
[1642572068892,4.95570592,3105.1,3103.9,2.12548074]
[1642572069091,0.80575,3104.7,3104.0,1.63488433]
[1642572069287,0.80575,3104.7,3104.0,1.64056857]
[1642572069689,0.80575,3104.7,3104.0,0.00568424]
[1642572070090,1.61147,3104.7,3104.0,0.00568424]
[1642572070589,0.80574,3104.5,3104.0,0.00568424]
[1642572072431,0.51494,3104.5,3104.0,0.00568424]
[1642572073032,1.62075,3104.5,3104.0,0.00568424]
[1642572073232,2.12658,3104.5,3104.0,0.00568424]
[1642572073631,3.12658,3104.5,3104.0,0.00568424]
[1642572074438,0.80583,3104.3,3104.0,0.00568424]
[1642572074634,3.88163,3104.3,3104.0,0.00568424]
[1642572076390,0.03843003,3104.2,3104.0,0.00568424]
[1642572076586,1.61187,3104.1,3104.0,0.00568424]
[1642572076989,3.22586658,3104.1,3104.0,0.00568424]
[1642572077388,4.22586658,3104.1,3104.0,0.00568424]
[1642572077687,3.92966658,3104.1,3104.0,0.00568424]
[1642572079937,2.92966658,3104.1,3104.0,0.00568424]
[1642572080138,3.92966658,3104.1,3104.0,0.00568424]
[1642572080941,2.92966658,3104.1,3104.0,0.00568424]
[1642572081141,4.73560658,3104.1,3103.8,0.4888452]
[1642572081341,0.80593,3104.0,3103.9,0.00625266]
[1642572081545,1.80593,3104.0,3103.9,0.00625266]
[1642572082781,1.50763,3104.0,3103.9,0.00625266]
[1642572083383,5.9,3103.9,3103.1,1.63488433]
[1642572083586,5.9,3103.9,3102.9,1.63488433]
[1642572083587,0.80606,3103.6,3102.9,1.63488433]
[1642572083785,0.80606,3103.6,3103.2,0.00397896]
[1642572083786,1.51966,3103.6,3103.2,0.00397896]
[1642572083985,1.81966,3103.6,3103.2,0.00397896]
[1642572084288,2.81966,3103.6,3103.2,0.00397896]
[1642572084485,1.81966,3103.6,3103.2,0.00397896]
[1642572084685,0.80613,3103.4,3103.2,0.00397896]
[1642572085085,1.80613,3103.4,3103.2,0.00397896]
[1642572085784,2.10613,3103.4,3103.2,0.00397896]
[1642572085987,2.36423,3103.4,3103.2,0.00397896]
[1642572086187,2.36423,3103.4,3102.3,2.4523265]
[1642572086188,9.3446515,3103.3,3102.9,0.00568423]
[1642572086440,9.3446515,3103.3,3102.7,0.00682108]
[1642572086441,1.61266,3103.2,3102.7,0.00682108]
[1642572086637,0.764,3103.1,3102.4,0.00852635]
[1642572086853,0.764,3103.1,3102.1,0.01023162]
[1642572087046,2.37675,3103.1,3102.1,0.01023162]
[1642572087447,0.80638,3102.9,3102.0,1.89511595]
[1642572087645,0.80638,3102.9,3102.0,0.3]
[1642572087646,3.03758,3102.9,3102.0,0.3]
[1642572087845,3.04188,3102.9,3102.0,0.3]
[1642572088046,1.61266,3102.7,3101.8,3.4205]
[1642572088448,2.03399198,3102.6,3101.9,0.00113685]
[1642572088649,0.00284211,3102.6,3101.9,1.12600822]
[1642572088849,1.2344,3103.1,3102.7,0.00625264]
[1642572089049,1.2344,3103.1,3102.8,2.73812137]
[1642572089452,1.0,3103.2,3102.8,2.73812137]
[1642572089649,1.8062,3103.2,3102.8,3.03812137]
[1642572089849,1.81017897,3103.2,3102.9,2.73812137]
[1642572090082,1.6125,3103.0,3102.7,0.00625264]
[1642572090286,2.01525904,3102.9,3102.7,0.00625264]